[Event "Condigne Dutch Open 2018"]
[Site "Dieren"]
[Date "2018.07.30"]
[Round "6"]
[White "Bosboom, Manuel"]
[Black "Van Dael, Siem"]
[Result "1-0"]
[ECO "B50"]
[WhiteElo "2403"]
[BlackElo "2212"]
[Annotator "NA"]
[PlyCount "57"]
[EventDate "2018.07.24"]
[EventType "swiss"]
[EventCountry "NED"]
[SourceTitle "playchess.com"]
[Source "ChessBase"]
[SourceQuality "1"]
[TimeControl "40/5400+30:1800+30"]

1. e4 {[%emt 0:00:00]} c5 {[%emt 0:00:00]} 2. Nf3 {[%emt 0:00:00]} d6 {[%emt 0:00:00]} 3. c3 {[%emt 0:00:33]} Nf6 {[%emt 0:00:00]} 4. h3 {[%emt 0:00:28]} Nc6 {[%emt 0:03:14]} 5. Bd3 {[%emt 0:01:11]} e5 {[%emt 0:00:06]} 6. Bc2 {[%emt 0:00:20]} Be7 {[%emt 0:00:33]} 7. d3 {[%emt 0:03:17]} O-O {[%emt 0:02:19]} 8. O-O {[%emt 0:02:42]} h6 {[%emt 0:01:59]} 9. Re1 {[%emt 0:05:09]} Nh7 {[%emt 0:03:26]} 10. d4 {[%emt 0:03:24]} Ng5 {[%emt 0:01:14]} 11. Bxg5 {[%emt 0:04:49]} hxg5 {[%emt 0:00:48]} 12. dxc5 {[%emt 0:03:08]} dxc5 {[%emt 0:00:44]} 13. Na3 {[%emt 0:01:21]} g4 {[%emt 0:06:32]} 14. hxg4 {[%emt 0:00:23]} Bxg4 $14 {[%emt 0:00:09]} 15. Nc4 {[%emt 0:00:57]} Qc8 {[%emt 0:52:32]} 16. Ne3 {[%emt 0:07:47]} Bg5 {[%emt 0:04:29]} 17. Nxg4 {[%emt 0:22:14]} Qxg4 {[%emt 0:00:08]} 18. Qe2 {[%emt 0:10:01]} Rae8 {[%emt 0:06:36]} 19. Bb3 {[%emt 0:01:11]} Bf4 {[%emt 0:11:09]} 20. Rad1 {[%emt 0:08:05]} g6 {[%emt 0:01:56]} 21. g3 {[%emt 0:05:27]} Bh6 {[%emt 0:01:25]} 22. Kg2 {[%emt 0:02:09]} Kg7 {[%emt 0:01:03]} 23. Qb5 {[%emt 0:05:52]} Re7 {[%emt 0:00:33]} 24. Qxc5 {[%emt 0:02:30]} f5 {[%emt 0:00:11]} 25. Rd6 {[%emt 0:01:27]} fxe4 {[%emt 0:00:50]} 26. Nh2 {[%emt 0:01:55]} Qg5 {[%emt 0:00:31]} 27. Rxe4 {[%emt 0:00:04]} Ree8 {[%emt 0:00:30]} 28. Bc2 {[%emt 0:02:43]} Qe7 {[%emt 0:00:30]} 29. Rg4 {[%emt 0:00:52]} 1-0

[Event "Condigne Dutch Open 2018"]
[Site "Dieren"]
[Date "2018.07.30"]
[Round "6"]
[White "Beukema, Jasper"]
[Black "Viani Antonio Dcunha"]
[Result "0-1"]
[ECO "D03"]
[WhiteElo "2299"]
[BlackElo "2404"]
[Annotator "NA"]
[PlyCount "50"]
[EventDate "2018.07.24"]
[EventType "swiss"]
[EventCountry "NED"]
[SourceTitle "playchess.com"]
[Source "ChessBase"]
[SourceQuality "1"]
[TimeControl "40/5400+30:1800+30"]

1. d4 {[%emt 0:00:00]} Nf6 {[%emt 0:00:00]} 2. Bg5 {[%emt 0:00:00]} d5 {[%emt 0:00:12]} 3. e3 {[%emt 1:31:30]} Nbd7 {[%emt 0:00:36]} 4. Nf3 {[%emt 0:00:00]} e6 {[%emt 0:01:00]} 5. Nbd2 {[%emt 0:00:00]} h6 {[%emt 0:00:49]} 6. Bf4 {[%emt 0:00:00]} Be7 {[%emt 0:03:35]} 7. Bd3 {[%emt 0:00:00]} c5 {[%emt 0:01:21]} 8. c3 {[%emt 0:00:00]} b6 {[%emt 0:02:03]} 9. Ne5 {[%emt 0:00:00]} Nxe5 {[%emt 0:00:52]} 10. dxe5 {[%emt 0:00:00]} Nd7 {[%emt 0:01:25]} 11. Qg4 {[%emt 0:00:00]} g5 {[%emt 0:02:48]} 12. h4 {[%emt 0:00:00]} h5 {[%emt 0:05:26]} 13. Qg3 {[%emt 0:00:00]} gxf4 {[%emt 0:00:12]} 14. Qg7 {[%emt 0:00:00]} Rf8 {[%emt 0:00:10]} 15. exf4 {[%emt 0:00:00]} c4 {[%emt 0:01:36]} 16. Be2 {[%emt 0:00:00]} Nc5 {[%emt 0:00:27]} ({Keinesfalls} 16... Bxh4 17. Bxh5 Be7 18. Kf1 $17) 17. Nf3 $19 {[%emt 0:00:00]} Ba6 {[%emt 0:07:46]} 18. g3 {[%emt 0:00:00]} Nd3+ {[%emt 0:08:21]} 19. Kf1 {[%emt 0:00:00]} Qd7 {[%emt 0:25:15]} 20. Ng5 {[%emt 0:00:00]} O-O-O {[%emt 0:07:53]} 21. Bxh5 {[%emt 0:00:00]} Qb5 {[%emt 0:06:24]} 22. Rb1 {[%emt 0:00:00]} d4 {[%emt 0:05:55]} 23. Kg2 {[%emt 0:00:00]} Bb7+ {[%emt 0:01:03]} 24. Bf3 {[%emt 0:00:00]} Bxf3+ {[%emt 0:00:11]} 25. Kxf3 {[%emt 0:00:00]} Bxg5 {[%emt 0:00:20]} 0-1

[Event "Condigne Dutch Open 2018"]
[Site "Dieren"]
[Date "2018.07.30"]
[Round "6"]
[White "Ashwath, R."]
[Black "Zwirs, Nico"]
[Result "0-1"]
[ECO "A57"]
[WhiteElo "2285"]
[BlackElo "2386"]
[Annotator "NA"]
[PlyCount "64"]
[EventDate "2018.07.24"]
[EventType "swiss"]
[EventCountry "NED"]
[SourceTitle "playchess.com"]
[Source "ChessBase"]
[SourceQuality "1"]
[TimeControl "40/5400+30:1800+30"]

1. d4 {[%emt 0:00:23]} Nf6 {[%emt 0:00:00]} 2. c4 {[%emt 1:30:37]} c5 {[%emt 0:00:00]} 3. d5 {[%emt 0:00:00]} b5 {[%emt 0:01:15]} 4. Nd2 {[%emt 0:00:00]} bxc4 {[%emt 0:01:59]} 5. e4 {[%emt 0:00:00]} e6 {[%emt 0:00:30]} 6. dxe6 {[%emt 0:00:00]} fxe6 {[%emt 0:00:15]} 7. e5 {[%emt 0:00:00]} Nd5 {[%emt 0:01:31]} 8. Nxc4 {[%emt 0:00:00]} Be7 {[%emt 0:19:41]} 9. Qh5+ {[%emt 0:00:00]} g6 {[%emt 0:07:31]} 10. Qh6 {[%emt 0:00:00]} Bf8 {[%emt 0:05:04]} 11. Qh3 {[%emt 0:00:00]} Ba6 {[%emt 0:02:16]} 12. Nf3 {[%emt 0:00:00]} Nc6 {[%emt 0:09:58]} 13. Be2 {[%emt 0:00:00]} Qc7 {[%emt 0:13:16]} 14. O-O {[%emt 0:00:00]} Bxc4 {[%emt 0:02:39]} 15. Bxc4 {[%emt 0:00:00]} Nb6 {[%emt 0:00:10]} 16. Bxe6 {[%emt 0:00:00]} dxe6 {[%emt 0:01:05]} 17. Qxe6+ {[%emt 0:00:00]} Be7 {[%emt 0:00:59]} 18. Ng5 {[%emt 0:00:00]} Nd8 {[%emt 0:01:01]} 19. Qh3 {[%emt 0:00:00]} Qd7 {[%emt 0:01:04]} 20. Qh6 {[%emt 0:00:00]} Ne6 {[%emt 0:03:43]} 21. Nxh7 {[%emt 0:02:48]} O-O-O {[%emt 0:02:44]} 22. Qxg6 {[%emt 0:00:23]} Rdg8 {[%emt 0:02:33]} 23. Qe4 {[%emt 0:01:30]} Nd4 {[%emt 0:02:37]} 24. Kh1 {[%emt 0:02:53]} Rg4 {[%emt 0:02:06]} 25. f4 {[%emt 0:02:24]} Qf5 {[%emt 0:03:06]} 26. Qxf5+ {[%emt 0:01:23]} Nxf5 {[%emt 0:00:01]} 27. Nf6 {[%emt 0:00:06]} Bxf6 {[%emt 0:00:04]} 28. exf6 {[%emt 0:00:05]} Ng3+ {[%emt 0:00:02]} 29. Kg1 {[%emt 0:00:04]} Nxf1 {[%emt 0:00:04]} 30. Kxf1 {[%emt 0:00:09]} Rxh2 {[%emt 0:00:13]} 31. f7 {[%emt 0:00:03]} Nd7 {[%emt 0:00:12]} 32. Be3 {[%emt 0:01:10]} Rh1+ {[%emt 0:00:05]} 0-1

[Event "Condigne Dutch Open 2018"]
[Site "Dieren"]
[Date "2018.07.30"]
[Round "6"]
[White "Ojas Kulkarni"]
[Black "Melde, Benjamin"]
[Result "1-0"]
[ECO "A37"]
[WhiteElo "2226"]
[BlackElo "2108"]
[Annotator "NA"]
[PlyCount "73"]
[EventDate "2018.07.24"]
[EventType "swiss"]
[EventCountry "NED"]
[SourceTitle "playchess.com"]
[Source "ChessBase"]
[SourceQuality "1"]
[TimeControl "40/5400+30:1800+30"]

1. Nf3 {[%emt 0:00:00]} g6 {[%emt 0:01:16]} 2. c4 {[%emt 0:00:00]} Bg7 {[%emt 0:00:07]} 3. g3 {[%emt 0:00:00]} c5 {[%emt 0:03:09]} 4. Nc3 {[%emt 0:00:08]} Nc6 {[%emt 0:00:06]} 5. Bg2 {[%emt 0:00:07]} e5 {[%emt 0:00:29]} 6. O-O {[%emt 0:00:13]} Nge7 {[%emt 0:00:05]} 7. a3 {[%emt 0:00:07]} O-O {[%emt 0:01:28]} 8. Rb1 {[%emt 0:00:54]} a5 {[%emt 0:00:15]} 9. Ne1 {[%emt 0:00:08]} Rb8 {[%emt 0:17:33]} 10. Nc2 {[%emt 0:00:59]} Nd4 {[%emt 0:00:33]} 11. b4 {[%emt 0:04:27]} d6 $14 {[%emt 0:09:39]} 12. Ne3 {[%emt 0:02:58]} h5 {[%emt 0:18:48]} 13. d3 {[%emt 0:05:25]} Bh6 {[%emt 0:07:19]} 14. Bd2 {[%emt 0:02:14]} h4 {[%emt 0:07:26]} 15. bxc5 {[%emt 0:16:59]} dxc5 {[%emt 0:01:47]} 16. Ne4 {[%emt 0:00:40]} Ne6 {[%emt 0:09:48]} 17. Nd5 {[%emt 0:06:00]} Bxd2 {[%emt 0:00:26]} 18. Qxd2 {[%emt 0:00:09]} Kg7 {[%emt 0:00:05]} 19. Qb2 {[%emt 0:06:02]} Nc6 {[%emt 0:03:26]} 20. Qb6 {[%emt 0:01:43]} Ned4 {[%emt 0:05:22]} 21. Ndc3 {[%emt 0:00:51]} h3 {[%emt 0:02:03]} 22. Bh1 {[%emt 0:01:21]} Nxe2+ {[%emt 0:00:12]} 23. Nxe2 {[%emt 0:00:14]} Qxd3 {[%emt 0:00:04]} 24. Rfe1 {[%emt 0:01:33]} Bg4 {[%emt 0:02:02]} 25. Nxc5 {[%emt 0:05:59]} Qxc4 {[%emt 0:01:50]} 26. Rbc1 {[%emt 0:03:16]} Qa2 {[%emt 0:00:30]} 27. Qb3 {[%emt 0:00:29]} Qd2 {[%emt 0:00:05]} 28. Qe3 {[%emt 0:02:03]} Qa2 {[%emt 0:00:32]} 29. Nxb7 {[%emt 0:01:19]} Rxb7 {[%emt 0:00:33]} 30. Bxc6 {[%emt 0:00:14]} Rb2 {[%emt 0:00:07]} 31. Nc3 {[%emt 0:06:28]} Qxa3 {[%emt 0:00:06]} 32. Qxe5+ {[%emt 0:00:14]} Kh7 {[%emt 0:00:05]} 33. Ne4 {[%emt 0:00:47]} Re2 {[%emt 0:04:45]} 34. Nf6+ {[%emt 0:02:01]} Kh8 {[%emt 0:00:04]} 35. Qg5 {[%emt 0:00:47]} Kg7 {[%emt 0:02:12]} 36. Nxg4 {[%emt 0:00:16]} Qc3 {[%emt 0:01:28]} 37. Rxe2 {[%emt 0:00:30]} 1-0

[Event "Condigne Dutch Open 2018"]
[Site "Dieren"]
[Date "2018.07.30"]
[Round "6"]
[White "De Jong, Tom"]
[Black "Miedema, David"]
[Result "1-0"]
[ECO "C02"]
[WhiteElo "2201"]
[BlackElo "2370"]
[Annotator "NA"]
[PlyCount "79"]
[EventDate "2018.07.24"]
[EventType "swiss"]
[EventCountry "NED"]
[SourceTitle "playchess.com"]
[Source "ChessBase"]
[SourceQuality "1"]
[TimeControl "40/5400+30:1800+30"]

1. e4 {[%emt 0:00:00]} e6 {[%emt 0:00:01]} 2. d4 {[%emt 0:00:00]} d5 {[%emt 0:00:05]} 3. e5 {[%emt 0:00:00]} c5 {[%emt 0:00:11]} 4. c3 {[%emt 0:00:00]} Nc6 {[%emt 0:00:05]} 5. Nf3 {[%emt 0:00:00]} Bd7 {[%emt 0:02:06]} 6. Be2 {[%emt 0:02:52]} Nge7 {[%emt 0:00:10]} 7. O-O {[%emt 0:01:55]} Ng6 {[%emt 0:00:09]} 8. a3 {[%emt 0:03:44]} a5 {[%emt 0:02:45]} 9. a4 {[%emt 0:04:52]} Be7 {[%emt 0:08:17]} 10. Na3 {[%emt 0:00:42]} O-O {[%emt 0:00:29]} 11. Be3 {[%emt 0:15:12]} cxd4 {[%emt 0:10:34]} 12. Bxd4 $11 {[%emt 0:04:35]} Qb8 {[%emt 0:02:18]} 13. Bb5 {[%emt 0:05:43]} f6 {[%emt 0:07:24]} 14. exf6 {[%emt 0:01:22]} Bxf6 {[%emt 0:00:43]} 15. Re1 {[%emt 0:08:50]} Qd6 {[%emt 0:04:55]} 16. Nc4 {[%emt 0:04:05]} Qe7 {[%emt 0:15:59]} 17. Nb6 {[%emt 0:03:30]} Rad8 {[%emt 0:01:50]} 18. Nxd5 {[%emt 0:02:41]} Qf7 {[%emt 0:00:31]} 19. Nxf6+ {[%emt 0:06:51]} gxf6 {[%emt 0:00:04]} 20. Bb6 {[%emt 0:00:22]} Rc8 {[%emt 0:00:26]} 21. Qd6 {[%emt 0:00:44]} e5 {[%emt 0:00:30]} 22. Rad1 {[%emt 0:15:53]} Bg4 {[%emt 0:00:04]} 23. Nd2 {[%emt 0:02:05]} Kh8 {[%emt 0:11:30]} 24. f3 {[%emt 0:00:22]} Be6 {[%emt 0:00:21]} 25. Ne4 {[%emt 0:01:43]} Nh4 {[%emt 0:00:31]} 26. Ng3 {[%emt 0:04:26]} Rg8 {[%emt 0:00:47]} 27. f4 {[%emt 0:01:46]} Rg4 {[%emt 0:04:06]} 28. fxe5 {[%emt 0:02:00]} f5 {[%emt 0:00:18]} 29. Bxc6 {[%emt 0:01:23]} bxc6 {[%emt 0:00:46]} 30. Bd8 {[%emt 0:02:09]} h6 {[%emt 0:01:06]} 31. Rf1 {[%emt 0:01:43]} f4 {[%emt 0:02:24]} 32. Rd4 {[%emt 0:02:09]} c5 {[%emt 0:00:29]} 33. Bf6+ {[%emt 0:00:33]} Kh7 {[%emt 0:06:52]} 34. Rdxf4 {[%emt 0:00:03]} Rxf4 {[%emt 0:00:06]} 35. Rxf4 {[%emt 0:00:05]} Ng6 {[%emt 0:00:02]} 36. Rf2 {[%emt 0:00:29]} Bb3 {[%emt 0:19:06]} 37. Ne4 {[%emt 0:01:18]} Qe8 {[%emt 0:00:00]} 38. Nxc5 {[%emt 0:01:08]} Rc6 {[%emt 0:00:00]} 39. Qd4 {[%emt 0:00:29]} Be6 {[%emt 0:00:00]} 40. Nxe6 {[%emt 0:00:31]} 1-0

[Event "Condigne Dutch Open 2018"]
[Site "Dieren"]
[Date "2018.07.30"]
[Round "6"]
[White "Floor, Dirk"]
[Black "Maris, Ivo"]
[Result "1/2-1/2"]
[ECO "D51"]
[WhiteElo "2196"]
[BlackElo "2342"]
[Annotator "NA"]
[PlyCount "161"]
[EventDate "2018.07.24"]
[EventType "swiss"]
[EventCountry "NED"]
[SourceTitle "playchess.com"]
[Source "ChessBase"]
[SourceQuality "1"]
[TimeControl "40/5400+30:1800+30"]

1. d4 {[%emt 0:00:00]} Nf6 {[%emt 0:01:35]} 2. c4 {[%emt 0:00:00]} e6 {[%emt 0:02:14]} 3. Nf3 {[%emt 0:00:00]} d5 {[%emt 0:00:10]} 4. Nc3 {[%emt 0:03:55]} Nbd7 {[%emt 0:03:24]} 5. Bg5 {[%emt 0:04:18]} h6 {[%emt 0:06:13]} 6. Bh4 {[%emt 0:01:41]} dxc4 {[%emt 0:01:15]} 7. e3 {[%emt 0:03:07]} a6 {[%emt 0:03:08]} 8. a4 {[%emt 0:03:59]} c5 {[%emt 0:03:33]} 9. Bxc4 {[%emt 0:01:55]} cxd4 {[%emt 0:00:51] LiveBook: 5 Games} 10. exd4 {[%emt 0:01:40]} Nb6 {[%emt 0:01:39]} 11. Bb3 {[%emt 0:03:17]} Be7 $14 {[%emt 0:01:36]} 12. O-O {[%emt 0:00:29]} O-O {[%emt 0:00:29]} 13. Re1 {[%emt 0:09:40]} Nfd5 {[%emt 0:08:55]} 14. Bxe7 {[%emt 0:02:32]} Nxe7 {[%emt 0:00:36]} 15. a5 {[%emt 0:01:10]} Nbd5 {[%emt 0:00:37]} 16. Nxd5 {[%emt 0:07:38]} Nxd5 {[%emt 0:02:57]} 17. Ne5 {[%emt 0:07:36]} Ne7 {[%emt 0:03:50]} 18. Bc2 {[%emt 0:04:32]} Bd7 {[%emt 0:02:46]} 19. Qd3 {[%emt 0:02:12]} g6 {[%emt 0:00:48]} 20. Qd2 {[%emt 0:01:34]} Kg7 {[%emt 0:04:02]} 21. Ra3 {[%emt 0:01:02]} Be8 {[%emt 0:03:39]} 22. Be4 {[%emt 0:04:30]} Rb8 {[%emt 0:03:36]} 23. Rh3 {[%emt 0:00:18]} Ng8 {[%emt 0:01:25]} 24. Rc1 {[%emt 0:05:13]} h5 {[%emt 0:02:52]} 25. Rf3 {[%emt 0:03:23]} Nf6 {[%emt 0:02:03]} 26. Qf4 {[%emt 0:02:17]} Nxe4 {[%emt 0:07:54]} 27. Qxe4 {[%emt 0:02:29]} Qxa5 {[%emt 0:03:00]} 28. Qf4 {[%emt 0:05:13]} Rc8 {[%emt 0:00:47]} 29. h4 {[%emt 0:01:37]} Rxc1+ {[%emt 0:01:29]} 30. Qxc1 {[%emt 0:00:02]} Bc6 {[%emt 0:01:27]} 31. Rg3 {[%emt 0:04:54]} Be4 {[%emt 0:01:00]} 32. Rc3 {[%emt 0:01:52]} Qd8 {[%emt 0:02:17]} 33. Qe3 {[%emt 0:02:11]} Qxh4 {[%emt 0:05:01]} 34. Rc7 {[%emt 0:00:53]} Bc6 {[%emt 0:01:54]} 35. Nxc6 {[%emt 0:07:25]} bxc6 {[%emt 0:00:20]} 36. Qc3 {[%emt 0:01:23]} Rd8 {[%emt 0:01:18]} 37. d5+ {[%emt 0:00:38]} Qf6 {[%emt 0:00:18]} 38. dxe6 {[%emt 0:00:23]} Qxc3 {[%emt 0:03:34]} 39. Rxf7+ {[%emt 0:00:24]} Kg8 {[%emt 0:00:40]} 40. bxc3 {[%emt 0:00:04]} Ra8 {[%emt 0:02:45]} 41. Rd7 {[%emt 0:07:56]} Kf8 {[%emt 0:01:57]} 42. Rf7+ {[%emt 0:01:52]} Ke8 {[%emt 0:04:55]} 43. Rg7 {[%emt 0:01:06]} Rd8 {[%emt 0:01:17]} 44. Rxg6 {[%emt 0:00:44]} Rd1+ {[%emt 0:02:09]} 45. Kh2 {[%emt 0:00:02]} Ke7 {[%emt 0:00:23]} 46. Rg7+ {[%emt 0:02:45]} Kxe6 {[%emt 0:01:01]} 47. Ra7 {[%emt 0:00:54]} Ra1 {[%emt 0:07:08]} 48. Rh7 {[%emt 0:00:48]} Ra5 {[%emt 0:00:12]} 49. Kh3 {[%emt 0:01:40]} Rc5 {[%emt 0:00:40]} 50. Rh6+ {[%emt 0:02:42]} Kf7 {[%emt 0:00:42]} 51. g3 {[%emt 0:00:52]} Kg7 {[%emt 0:00:08]} 52. Rd6 {[%emt 0:00:11]} a5 {[%emt 0:02:19]} 53. Kh4 {[%emt 0:01:04]} a4 {[%emt 0:03:44]} 54. Rd7+ {[%emt 0:00:14]} Kg6 {[%emt 0:00:03]} 55. Rd6+ {[%emt 0:01:35]} Kf5 {[%emt 0:01:26]} 56. Kxh5 {[%emt 0:01:52]} a3 {[%emt 0:00:41]} 57. Rd4 {[%emt 0:02:57]} Ra5 {[%emt 0:01:17]} 58. Rd1 {[%emt 0:01:39]} a2 {[%emt 0:00:19]} 59. Ra1 {[%emt 0:00:14]} Ke4+ {[%emt 0:06:09]} 60. Kg6 {[%emt 0:02:48]} Kf3 {[%emt 0:00:57]} 61. Kf6 {[%emt 0:00:37]} Ke4 {[%emt 0:03:53]} 62. g4 {[%emt 0:02:25]} c5 {[%emt 0:00:05]} 63. g5 {[%emt 0:01:17]} Ra6+ {[%emt 0:00:59]} 64. Ke7 {[%emt 0:00:17]} Kf5 {[%emt 0:01:22]} 65. Kd7 {[%emt 0:00:12]} Kxg5 {[%emt 0:00:21]} 66. Kc7 {[%emt 0:00:07]} Kf4 {[%emt 0:01:28]} 67. Kb7 {[%emt 0:00:07]} Ra4 {[%emt 0:06:01]} 68. Kb6 {[%emt 0:00:14]} Ke4 {[%emt 0:00:03]} 69. Kb5 {[%emt 0:01:43]} Ra8 {[%emt 0:00:01]} 70. Kxc5 {[%emt 0:01:14]} Kd3 {[%emt 0:00:01]} 71. c4 {[%emt 0:02:28]} Kc3 {[%emt 0:00:25]} 72. Kb5 {[%emt 0:00:58]} Rb8+ {[%emt 0:01:29]} 73. Kc6 {[%emt 0:00:20]} Rb2 {[%emt 0:00:23]} 74. c5 {[%emt 0:00:43]} Rxf2 {[%emt 0:00:13]} 75. Kd7 {[%emt 0:01:14]} Rf7+ {[%emt 0:01:29]} 76. Ke6 {[%emt 0:00:10]} Ra7 {[%emt 0:00:04]} 77. c6 {[%emt 0:00:20]} Kb2 {[%emt 0:00:33]} 78. Rxa2+ {[%emt 0:00:48]} Kxa2 {[%emt 0:00:05]} 79. Kd6 {[%emt 0:00:06]} Kb3 {[%emt 0:00:03]} 80. c7 {[%emt 0:00:05]} Rxc7 {[%emt 0:00:02]} 81. Kxc7 {[%emt 0:03:44]} 1/2-1/2

[Event "Condigne Dutch Open 2018"]
[Site "Dieren"]
[Date "2018.07.30"]
[Round "6"]
[White "Sparenberg, Erik"]
[Black "Van Osch, Mees"]
[Result "1/2-1/2"]
[ECO "A57"]
[WhiteElo "2173"]
[BlackElo "2324"]
[Annotator "NA"]
[PlyCount "77"]
[EventDate "2018.07.24"]
[EventType "swiss"]
[EventCountry "NED"]
[SourceTitle "playchess.com"]
[Source "ChessBase"]
[SourceQuality "1"]
[TimeControl "40/5400+30:1800+30"]

1. d4 {[%emt 0:00:00]} Nf6 {[%emt 0:00:00]} 2. c4 {[%emt 0:00:00]} c5 {[%emt 0:00:00]} 3. d5 {[%emt 0:00:00]} b5 {[%emt 0:00:00]} 4. cxb5 {[%emt 0:03:15]} a6 {[%emt 0:00:00]} 5. b6 {[%emt 0:00:03]} e6 {[%emt 0:00:12]} 6. Nc3 {[%emt 0:00:20]} Bb7 {[%emt 0:02:46]} 7. e4 {[%emt 0:00:21]} exd5 {[%emt 0:00:05]} 8. exd5 {[%emt 0:02:18]} d6 {[%emt 0:00:11]} 9. g3 {[%emt 0:12:42]} Nbd7 {[%emt 0:01:04]} 10. Bg2 {[%emt 0:04:56]} Nxb6 {[%emt 0:02:53]} 11. Nge2 {[%emt 0:01:56]} Be7 {[%emt 0:01:03]} 12. O-O {[%emt 0:02:57]} O-O {[%emt 0:00:04]} 13. Re1 {[%emt 0:10:59]} Re8 {[%emt 0:00:09]} 14. b3 $11 {[%emt 0:01:47]} Bf8 {[%emt 0:17:43]} 15. Bb2 {[%emt 0:04:24]} g6 {[%emt 0:01:28]} 16. Qd2 {[%emt 0:01:35]} Bg7 {[%emt 0:00:22]} 17. Nf4 {[%emt 0:05:44]} Qd7 {[%emt 0:07:04]} 18. a4 {[%emt 0:09:43]} Rxe1+ {[%emt 0:01:02]} 19. Rxe1 {[%emt 0:00:04]} Re8 {[%emt 0:00:16]} 20. a5 {[%emt 0:07:41]} Nc8 {[%emt 0:00:39]} 21. h4 {[%emt 0:06:54]} Rxe1+ {[%emt 0:06:40]} 22. Qxe1 {[%emt 0:00:01]} Ne7 {[%emt 0:00:20]} 23. Ne4 {[%emt 0:15:28]} Nxe4 {[%emt 0:05:14]} 24. Bxg7 {[%emt 0:00:18]} Kxg7 {[%emt 0:00:06]} 25. Qxe4 {[%emt 0:00:30]} Ng8 {[%emt 0:02:35]} 26. Qe3 {[%emt 0:01:03]} Qe7 {[%emt 0:01:50]} 27. Qc3+ {[%emt 0:01:20]} Qf6 {[%emt 0:00:12]} 28. Qe1 {[%emt 0:00:19]} Ne7 {[%emt 0:02:23]} 29. Qe4 {[%emt 0:02:11]} Nf5 {[%emt 0:20:59]} 30. b4 {[%emt 0:00:27]} Qa1+ {[%emt 0:01:29]} 31. Kh2 {[%emt 0:00:11]} Qd4 {[%emt 0:00:22]} 32. bxc5 {[%emt 0:00:33]} dxc5 {[%emt 0:07:02]} 33. Qxd4+ {[%emt 0:01:12]} Nxd4 {[%emt 0:09:27]} 34. d6 {[%emt 0:02:06]} Bxg2 {[%emt 0:00:47]} 35. d7 {[%emt 0:00:36]} Nc6 {[%emt 0:00:10]} 36. Kxg2 {[%emt 0:00:11]} Kf6 {[%emt 0:02:28]} 37. Nd3 {[%emt 0:00:11]} Ke7 {[%emt 0:06:45]} 38. Nxc5 {[%emt 0:00:10]} Nxa5 {[%emt 0:00:09]} 39. Nxa6 {[%emt 0:00:24]} 1/2-1/2

[Event "Condigne Dutch Open 2018"]
[Site "Dieren"]
[Date "2018.07.30"]
[Round "6"]
[White "Go, Benjamin"]
[Black "Van Meegen, Ruud"]
[Result "0-1"]
[ECO "B16"]
[WhiteElo "2162"]
[BlackElo "2222"]
[Annotator "NA"]
[PlyCount "112"]
[EventDate "2018.07.24"]
[EventType "swiss"]
[EventCountry "NED"]
[SourceTitle "playchess.com"]
[Source "ChessBase"]
[SourceQuality "1"]
[TimeControl "40/5400+30:1800+30"]

1. e4 {[%emt 0:00:00]} c6 {[%emt 0:00:00]} 2. d4 {[%emt 0:00:00]} d5 {[%emt 0:00:00]} 3. Nc3 {[%emt 0:01:27]} dxe4 {[%emt 0:00:00]} 4. Nxe4 {[%emt 0:03:07]} Nf6 {[%emt 0:00:15]} 5. Nxf6+ {[%emt 0:01:29]} gxf6 {[%emt 0:00:08]} 6. Bc4 {[%emt 0:04:18]} Bf5 {[%emt 0:04:58]} 7. Ne2 {[%emt 0:01:45]} h5 {[%emt 0:03:27]} 8. Ng3 {[%emt 0:13:37]} Bg6 $14 {[%emt 0:10:44]} 9. h4 {[%emt 0:01:40]} e6 {[%emt 0:00:24]} 10. Be3 {[%emt 0:10:53]} Bd6 {[%emt 0:01:59]} 11. Qd2 {[%emt 0:08:51]} Qc7 {[%emt 0:03:31]} 12. O-O-O {[%emt 0:02:41]} Nd7 {[%emt 0:00:45]} 13. Ne2 {[%emt 0:02:03]} Nb6 {[%emt 0:03:54]} 14. Bd3 {[%emt 0:01:07]} Bxd3 {[%emt 0:03:03]} 15. Qxd3 {[%emt 0:01:12]} O-O-O {[%emt 0:07:45]} 16. Kb1 {[%emt 0:04:32]} Kb8 {[%emt 0:08:29]} 17. c4 {[%emt 0:06:26]} c5 {[%emt 0:00:15]} 18. b3 {[%emt 0:02:21]} a6 {[%emt 0:03:19]} 19. Qc3 {[%emt 0:02:20]} Nd7 {[%emt 0:02:33]} 20. Rd2 {[%emt 0:09:41]} cxd4 {[%emt 0:11:47]} 21. Bxd4 {[%emt 0:04:27]} e5 {[%emt 0:06:12]} 22. Be3 {[%emt 0:00:22]} f5 {[%emt 0:00:53]} 23. Rhd1 {[%emt 0:01:07]} Nf6 {[%emt 0:04:16]} 24. f3 {[%emt 0:02:02]} Be7 {[%emt 0:02:42]} 25. Bg5 {[%emt 0:02:24]} Rxd2 {[%emt 0:06:23]} 26. Rxd2 {[%emt 0:00:22]} Rd8 {[%emt 0:01:16]} 27. Rxd8+ {[%emt 0:02:18]} Bxd8 {[%emt 0:00:06]} 28. Qd3 {[%emt 0:01:09]} f4 {[%emt 0:07:34]} 29. Qf5 {[%emt 0:04:14]} Qd6 {[%emt 0:00:28]} 30. Nc3 {[%emt 0:00:50]} Ba5 {[%emt 0:02:04]} 31. Kc2 {[%emt 0:03:20]} Bxc3 {[%emt 0:00:17]} 32. Kxc3 {[%emt 0:00:10]} Qd4+ {[%emt 0:01:31]} 33. Kc2 {[%emt 0:00:43]} Qf2+ {[%emt 0:00:37]} 34. Kc3 {[%emt 0:00:08]} Qe1+ {[%emt 0:01:19]} 35. Kb2 {[%emt 0:00:55]} Qd2+ {[%emt 0:00:09]} 36. Ka3 {[%emt 0:00:11]} Qa5+ {[%emt 0:00:22]} 37. Kb2 {[%emt 0:00:04]} Qd2+ {[%emt 0:00:19]} 38. Ka3 {[%emt 0:00:30]} Nd7 {[%emt 0:03:42]} 39. Be7 {[%emt 0:01:29]} Kc7 {[%emt 0:01:13]} 40. Qb1 {[%emt 0:02:19]} Qa5+ {[%emt 0:00:31]} 41. Kb2 {[%emt 0:30:14]} Qd2+ {[%emt 0:30:08]} 42. Qc2 {[%emt 0:00:00]} Qxc2+ {[%emt 0:00:00]} 43. Kxc2 {[%emt 0:00:00]} Kc6 {[%emt 0:00:00]} 44. Kd3 {[%emt 0:00:00]} f5 {[%emt 0:00:00]} 45. b4 {[%emt 0:00:00]} b5 {[%emt 0:00:00]} 46. Kc3 {[%emt 0:00:00]} Nb6 {[%emt 0:00:00]} 47. cxb5+ {[%emt 0:00:00]} axb5 {[%emt 0:00:00]} 48. Kd3 {[%emt 0:00:00]} Kd5 {[%emt 0:00:00]} 49. Bc5 {[%emt 0:00:00]} Nc4 {[%emt 0:00:00]} 50. Kc3 {[%emt 0:00:00]} e4 {[%emt 0:00:00]} 51. Ba7 {[%emt 0:00:00]} Ne5 {[%emt 0:00:00]} 52. a4 {[%emt 0:00:00]} bxa4 {[%emt 0:00:00]} 53. b5 {[%emt 0:00:00]} a3 {[%emt 0:00:00]} 54. Kb3 {[%emt 0:00:00]} a2 {[%emt 0:00:00]} 55. Kxa2 {[%emt 0:00:00]} e3 {[%emt 0:00:00]} 56. Kb3 {[%emt 0:00:00]} e2 {[%emt 0:00:00]} 0-1